bitfinex/quotes_BTCUSD_20250221
["timestamp","ask_amount","ask_price","bid_price","bid_amount"]
[1740151254189,0.15123,99187.0,99178.0,0.00495182]
[1740151254389,0.151232,99186.0,99183.0,0.00495177]
[1740151254592,0.201628,99193.0,99177.0,0.201657]
[1740151254798,0.15109131,99199.0,99176.0,0.0753]
[1740151255003,0.151226,99190.0,99182.0,0.151236]
[1740151255201,0.151227,99189.0,99182.0,0.151236]
[1740151255408,0.00759595,99191.0,99183.0,0.151235]
[1740151255409,0.151225,99190.0,99183.0,0.151235]
[1740151255624,0.15231631,99190.0,99183.0,0.15618677]
[1740151255801,0.00109131,99190.0,99185.0,0.151232]
[1740151256004,0.00109131,99190.0,99183.0,0.00495177]
[1740151256005,0.00109131,99190.0,99176.0,0.0753]
[1740151256203,0.15231631,99190.0,99186.0,0.00495175]
[1740151256407,0.00109131,99190.0,99189.0,0.151226]
[1740151256605,0.00109131,99191.0,99190.0,0.151224]
[1740151257099,0.00109131,99191.0,99190.0,0.231524]
[1740151257325,0.00109131,99191.0,99190.0,0.23645867]
[1740151257778,0.001,99209.0,99208.0,0.151197]
[1740151258262,0.00109131,99214.0,99209.0,0.151195]
[1740151258876,0.0101641,99215.0,99209.0,0.00493449]
[1740151259051,0.0101641,99215.0,99190.0,0.0873]
[1740151259272,0.20159,99212.0,99191.0,0.10264569]
[1740151259477,0.23515227,99210.0,99190.0,0.0873]
[1740151259698,0.23393946,99210.0,99182.0,0.0786]
[1740151259895,0.0001296,99210.0,99182.0,0.0786]
[1740151260078,0.1512,99206.0,99197.0,0.151212]
[1740151260418,0.151195,99209.0,99183.0,0.00120975]
[1740151260579,0.151198,99208.0,99187.0,0.10264569]
[1740151260782,0.0001296,99210.0,99198.0,0.151212]
[1740151261027,0.00109131,99209.0,99197.0,0.201617]
[1740151261215,0.151201,99206.0,99199.0,0.15121]
[1740151261555,0.15228631,99209.0,99208.0,0.006]
[1740151261886,0.151207,99202.0,99187.0,0.30528369]
[1740151262124,0.151207,99202.0,99160.0,0.53635086]
[1740151262125,0.00121281,99201.0,99168.0,0.201677]
[1740151262328,0.151212,99199.0,99197.0,0.002]
[1740151262528,0.15242481,99198.0,99197.0,0.002]
[1740151262865,0.15242481,99198.0,99175.0,0.01468099]
[1740151262866,0.151239,99181.0,99175.0,0.01468099]
[1740151262976,0.23380986,99190.0,99175.0,0.01468099]
[1740151263179,0.201637,99188.0,99175.0,0.01468099]
[1740151263383,0.15124,99180.0,99175.0,0.01468099]
[1740151263591,0.201635,99189.0,99175.0,0.01468099]
[1740151263792,0.151246,99176.0,99175.0,0.01468099]
[1740151264196,0.16149353,99176.0,99175.0,0.01468099]
[1740151264401,0.31270634,99176.0,99175.0,0.01468099]
[1740151264608,0.41413922,99176.0,99175.0,0.01468099]
[1740151266360,0.31149353,99176.0,99175.0,0.01468099]
[1740151266560,0.16024753,99176.0,99175.0,0.01468099]
[1740151266986,0.16024753,99176.0,99175.0,0.01568099]
[1740151266987,0.31149353,99176.0,99175.0,0.01568099]
[1740151267183,0.01024753,99176.0,99175.0,0.01568099]
[1740151267385,0.00109131,99179.0,99175.0,0.01568099]
[1740151267619,0.01094808,99179.0,99176.0,0.151246]
[1740151267774,0.151246,99176.0,99175.0,0.01568099]
[1740151268177,0.40389169,99176.0,99175.0,0.01568099]
[1740151268632,0.301246,99176.0,99175.0,0.01568099]
[1740151269342,0.301246,99176.0,99175.0,0.01468099]
[1740151269494,0.301246,99176.0,99175.0,0.01668099]
[1740151269692,0.302246,99176.0,99175.0,0.01668099]
[1740151269924,0.15,99175.0,99143.0,0.01454085]
[1740151270130,0.23380986,99170.0,99155.0,0.151276]
[1740151270375,0.151266,99163.0,99152.0,0.151282]
[1740151270526,0.201675,99169.0,99150.0,0.00013001]
[1740151270730,0.23380986,99160.0,99150.0,0.00013001]
[1740151271007,0.15128,99154.0,99150.0,0.00013001]
[1740151271235,0.15249381,99153.0,99150.0,0.00013001]
[1740151271439,0.151284,99151.0,99150.0,0.00013001]
[1740151271999,0.00121281,99153.0,99152.0,0.151282]
[1740151272203,0.00109281,99152.0,99150.0,0.15141501]
[1740151272403,0.00109281,99152.0,99150.0,0.00013001]
[1740151272603,0.151284,99151.0,99150.0,0.00013001]
[1740151272804,0.15237481,99152.0,99150.0,0.00013001]
[1740151273004,0.00109281,99152.0,99150.0,0.00013001]
[1740151273208,0.00109281,99153.0,99152.0,0.151282]
[1740151273410,0.00109281,99153.0,99152.0,0.230682]
[1740151273610,0.00109281,99153.0,99152.0,0.38082769]
[1740151274364,0.15,99178.0,99168.0,0.151257]
[1740151274576,0.01092441,99179.0,99178.0,0.151243]
[1740151274788,0.01092441,99179.0,99157.0,0.09520553]
[1740151275004,0.01092441,99179.0,99158.0,0.11718654]
[1740151275415,0.0098316,99179.0,99159.0,0.01454085]
[1740151275540,0.0098316,99179.0,99178.0,0.151243]
[1740151275754,0.00109281,99182.0,99160.0,0.10264569]
[1740151276173,0.00109281,99182.0,99176.0,0.151245]
[1740151276373,0.00109281,99182.0,99181.0,0.151238]
[1740151276578,0.00109281,99185.0,99184.0,0.151234]
[1740151276968,0.00109281,99185.0,99182.0,0.151235]
[1740151277574,0.15231781,99190.0,99183.0,0.151235]
[1740151277822,0.1233,99184.0,99152.0,0.007]
[1740151278053,0.30880369,99153.0,99152.0,0.00713001]
[1740151278551,0.30880369,99153.0,99109.0,0.00121044]
[1740151278552,0.151313,99132.0,99099.0,0.1266]
[1740151278763,0.301313,99132.0,99099.0,0.1266]
[1740151278961,0.301313,99132.0,99068.0,0.02]
[1740151278962,0.40395869,99132.0,99131.0,0.00050355]
[1740151280079,0.48395869,99132.0,99131.0,0.00050355]
[1740151280633,0.48395869,99132.0,99131.0,5.5e-07]
[1740151280844,0.301345,99111.0,99068.0,0.0477]
[1740151281047,0.13192065,99083.0,99075.0,0.01515068]
[1740151281251,0.00121281,99082.0,99075.0,0.01515068]
[1740151281457,0.151398,99077.0,99075.0,0.01515068]
[1740151281681,0.0280437,99081.0,99075.0,0.01515068]
[1740151281881,0.0280437,99087.0,99075.0,0.01515068]
[1740151282056,0.00109281,99083.0,99075.0,0.01515068]
[1740151282265,0.15,99099.0,99075.0,0.01515068]
[1740151282266,0.15889279,99076.0,99075.0,0.01515068]
[1740151283263,0.26275129,99076.0,99075.0,0.01515068]
[1740151283471,0.26153848,99076.0,99075.0,0.01515068]
[1740151283903,0.00749479,99076.0,99075.0,0.01515068]
[1740151284112,0.48815129,99076.0,99075.0,0.01515068]
[1740151284311,0.347424,99059.0,99058.0,0.01805117]
[1740151284520,0.347424,99059.0,99033.0,0.00365956]
[1740151284521,0.301463,99034.0,99033.0,0.00365956]
[1740151284724,0.202015,99003.0,98988.0,0.0467]
[1740151284932,0.00121281,99002.0,98997.0,0.00050406]
[1740151285169,0.202015,99003.0,98997.0,0.00050406]
[1740151285362,0.00109325,99006.0,98997.0,0.00050406]
[1740151285640,0.01142017,99006.0,98997.0,0.00050406]
[1740151285847,0.00109325,99006.0,98997.0,0.00050406]
[1740151286047,0.151518,98998.0,98997.0,0.00050406]
[1740151286256,0.20310225,99006.0,98997.0,0.00050406]
[1740151286499,0.23380986,99007.0,98997.0,0.00050406]
[1740151286500,0.00109325,99002.0,98997.0,0.00050406]
[1740151286701,0.151517,98999.0,98997.0,0.00050406]
[1740151287111,0.00121281,98998.0,98997.0,0.00050406]
[1740151287328,0.02744006,98998.0,98997.0,0.00050406]
[1740151287547,0.00109325,98998.0,98997.0,0.00050406]
[1740151287752,0.40525694,98998.0,98997.0,0.00050406]
[1740151288170,0.40525694,98998.0,98997.0,1e-08]
[1740151288594,0.40416369,98998.0,98997.0,1e-08]
[1740151289219,0.40416369,98998.0,98997.0,0.00100001]
[1740151289428,0.10264569,98998.0,98997.0,0.00100001]
[1740151289640,0.00109325,99000.0,98997.0,0.00100001]
[1740151289844,0.151517,98999.0,98997.0,1e-08]
[1740151290252,0.25964569,98998.0,98997.0,1e-08]
[1740151290662,0.26073894,98998.0,98997.0,1e-08]
[1740151291073,0.25373894,98998.0,98997.0,1e-08]
[1740151291323,0.15109325,98998.0,98997.0,1e-08]
[1740151291535,0.15109325,98998.0,98997.0,0.15151901]
[1740151291536,0.00109325,98998.0,98997.0,0.15151901]
[1740151291746,0.01018579,99006.0,98997.0,0.15151901]
[1740151291747,0.151517,98999.0,98997.0,1e-08]
[1740151291949,0.25416269,98999.0,98997.0,1e-08]
[1740151292530,0.151517,98999.0,98997.0,1e-08]
[1740151292966,0.00109325,99000.0,98997.0,1e-08]
[1740151293145,0.151517,98999.0,98997.0,1e-08]
[1740151293350,0.151517,98999.0,98991.0,0.0002]
[1740151293351,0.151526,98993.0,98991.0,0.0002]
[1740151293556,0.00121281,98992.0,98991.0,0.00033017]
[1740151293960,0.15121281,98992.0,98991.0,0.00033017]
[1740151294781,0.15109325,98992.0,98991.0,0.00033017]
[1740151295242,0.15409325,98992.0,98991.0,0.00033017]
[1740151295859,0.25795175,98992.0,98991.0,0.00033017]
[1740151296069,0.25373894,98992.0,98991.0,0.00033017]
[1740151296494,0.301538,98985.0,98984.0,0.02668188]
[1740151296694,0.40418369,98985.0,98984.0,0.02680476]
[1740151297287,0.301551,98976.0,98951.0,0.0002]
[1740151297440,0.40419669,98976.0,98951.0,0.0002]
[1740151297647,0.56938273,98976.0,98951.0,0.0002]
[1740151298016,0.151588,98952.0,98951.0,0.0002]
[1740151298217,0.15,98969.0,98951.0,0.00030981]
[1740151298424,0.151582,98957.0,98951.0,0.00030981]
[1740151298634,0.151588,98952.0,98951.0,0.00030981]
[1740151298877,0.15280081,98952.0,98951.0,0.00030981]
[1740151299297,0.41545456,98952.0,98951.0,0.00030981]
[1740151299506,0.41424175,98952.0,98951.0,0.00030981]
[1740151300143,0.41924175,98952.0,98951.0,0.00030981]
[1740151300882,0.4337826,98952.0,98951.0,0.00030981]
[1740151301303,0.4537826,98952.0,98951.0,8.1e-07]
[1740151301477,0.4537826,98952.0,98911.0,0.0002]
[1740151301478,0.151647,98914.0,98911.0,0.0002]
[1740151301731,0.00872,98933.0,98911.0,0.0002]
[1740151301941,0.15164,98918.0,98911.0,0.0002]
[1740151302147,0.15,98931.0,98911.0,0.0002]
[1740151302324,0.151639,98919.0,98911.0,0.0002]
[1740151302529,0.151641,98918.0,98911.0,0.0002]
[1740151302736,0.0151641,98917.0,98892.0,0.20224]
[1740151302970,0.0151641,98917.0,98911.0,0.00043447]
[1740151302971,0.171649,98912.0,98911.0,0.00043447]
[1740151303199,0.171649,98912.0,98870.0,0.00601334]
[1740151303200,0.151703,98877.0,98870.0,0.00601334]
[1740151303606,0.00121281,98891.0,98870.0,0.00601334]
[1740151303816,0.151692,98884.0,98883.0,0.00360692]
[1740151304017,0.40261994,98884.0,98883.0,0.00360692]
[1740151304224,0.02,98865.0,98814.0,0.3229746]
[1740151304431,0.36309543,98850.0,98836.0,0.10264569]
[1740151304637,0.15,98869.0,98839.0,0.10264569]
[1740151304846,0.01239289,98853.0,98840.0,0.00121372]
[1740151305048,0.01239289,98853.0,98839.0,0.10264569]
[1740151305049,0.02,98818.0,98797.0,0.015021]
[1740151305255,0.1038585,98852.0,98797.0,0.015021]
[1740151305256,0.02,98816.0,98797.0,0.015021]
[1740151305477,0.02,98816.0,98777.0,0.202475]
[1740151305679,0.0805,98831.0,98778.0,0.00121442]
[1740151305680,0.02,98813.0,98778.0,0.00121442]
[1740151305888,0.02,98811.0,98797.0,0.00043402]
[1740151306091,0.02,98809.0,98798.0,0.10264569]
[1740151306305,0.02,98807.0,98797.0,0.00043402]
[1740151306513,0.36309543,98810.0,98797.0,0.00043402]
[1740151306514,0.02,98798.0,98797.0,0.00043402]
[1740151306720,0.02121281,98798.0,98797.0,0.00043402]
[1740151306889,0.17230606,98798.0,98797.0,0.00043402]
[1740151307289,0.27495175,98798.0,98797.0,0.00043402]
[1740151307491,0.321834,98792.0,98776.0,0.015021]
[1740151307709,0.42447969,98792.0,98791.0,0.00033025]
[1740151308112,0.50157969,98792.0,98791.0,0.00033025]
[1740151308719,0.171895,98752.0,98695.0,0.5256176]
[1740151308977,0.171895,98752.0,98751.0,0.00026604]
[1740151308978,0.02,98752.0,98751.0,0.00026604]
[1740151309327,0.09164085,98792.0,98751.0,0.00026604]
[1740151309328,0.00121281,98784.0,98751.0,0.00026604]
[1740151309536,0.02,98757.0,98755.0,0.151891]
[1740151309743,0.02,98766.0,98765.0,0.151875]
[1740151309981,0.0771,98792.0,98756.0,0.0152157]
[1740151309982,0.02,98772.0,98756.0,0.0152157]
[1740151310209,0.00109325,98782.0,98751.0,0.00026604]
[1740151310210,0.02,98758.0,98751.0,0.00026604]
[1740151310389,0.02,98752.0,98751.0,0.00026604]
[1740151310828,0.02,98787.0,98751.0,0.00026604]
[1740151310829,0.02,98756.0,98751.0,0.00026604]
[1740151311042,0.02,98747.0,98715.0,0.3229746]
[1740151311249,0.36309543,98730.0,98702.0,0.0464]
[1740151311464,0.0196,98718.0,98715.0,0.00043525]
[1740151311670,0.0196,98716.0,98715.0,0.00043525]
[1740151312516,0.0196,98716.0,98715.0,0.15238725]
[1740151312727,0.0196,98716.0,98715.0,0.00043525]
[1740151313159,0.0196,98718.0,98716.0,0.151951]
[1740151313368,0.0196,98720.0,98717.0,0.202599]
[1740151313569,0.0196,98720.0,98719.0,0.151946]
[1740151314282,0.00269709,98723.0,98722.0,0.151941]
[1740151314485,0.00269709,98723.0,98722.0,0.25519709]
[1740151314692,0.00109325,98744.0,98743.0,0.151909]
[1740151314899,0.00109325,98744.0,98743.0,0.25455469]
[1740151315106,0.0196,98768.0,98767.0,0.151872]
[1740151315369,0.0196,98778.0,98767.0,0.10264569]
[1740151315587,0.0196,98778.0,98777.0,0.3229746]
[1740151315802,0.0196,98780.0,98779.0,0.151854]
[1740151316014,0.0196,98790.0,98777.0,0.3169746]
[1740151316230,0.00109325,98793.0,98792.0,0.151834]
[1740151316445,0.00109325,98793.0,98792.0,0.25447969]
[1740151316659,0.0196,98840.0,98792.0,0.11718654]
[1740151316887,0.0752,98867.0,98821.0,0.3229746]
[1740151316888,0.0196,98832.0,98821.0,0.3229746]
[1740151317111,0.0196,98813.0,98811.0,0.3229746]
[1740151317343,0.0196,98812.0,98811.0,0.4747786]
[1740151317766,0.0196,98812.0,98811.0,0.4737786]
[1740151317990,0.0196,98796.0,98777.0,0.3169746]
[1740151318201,0.0196,98791.0,98777.0,0.3169746]
[1740151318409,0.0196,98791.0,98789.0,0.151837]
[1740151318623,0.0196,98798.0,98790.0,0.3229746]
[1740151318831,0.0196,98801.0,98800.0,0.151821]
[1740151319042,0.0196,98809.0,98808.0,0.151809]
[1740151319275,0.0196,98811.0,98810.0,0.151806]
[1740151319487,0.0196,98811.0,98800.0,0.10264569]
[1740151319708,0.0196,98776.0,98731.0,0.030421]
[1740151319916,0.0196,98776.0,98731.0,0.151927]
[1740151319917,0.0196,98732.0,98731.0,0.151927]
[1740151320124,0.0196,98732.0,98672.0,0.152018]
[1740151320125,0.0196,98676.0,98672.0,0.152018]
[1740151320343,0.0196,98676.0,98641.0,0.0154052]
[1740151320344,0.0196,98678.0,98673.0,0.202688]
[1740151320629,0.0196,98689.0,98687.0,0.151994]
[1740151320839,0.0196,98699.0,98697.0,0.15198]
[1740151321049,0.36309543,98730.0,98661.0,0.00061154]
[1740151321050,0.0196,98698.0,98661.0,0.00061154]
[1740151321264,0.202565,98734.0,98654.0,0.3229746]
[1740151321265,0.0196,98672.0,98654.0,0.3229746]
[1740151321682,0.0196,98672.0,98671.0,0.00063525]
[1740151321910,0.0196,98672.0,98671.0,0.15265525]
[1740151322122,0.0196,98683.0,98672.0,0.202691]
[1740151322337,0.0196,98692.0,98691.0,0.151989]
[1740151322544,0.030453,98735.0,98721.0,0.00430506]
[1740151322748,0.00151993,98724.0,98721.0,0.00430506]
[1740151322960,0.00109567,98734.0,98721.0,0.00430506]
[1740151323142,0.00261532,98734.0,98721.0,0.00430506]
[1740151323358,0.00261538,98734.0,98721.0,0.00430506]
[1740151323570,0.00109567,98734.0,98732.0,0.151925]
[1740151324030,0.00109567,98734.0,98730.0,0.202571]
[1740151324031,0.02,98706.0,98641.0,0.0154052]
[1740151324261,0.02,98704.0,98665.0,0.202705]
[1740151324508,0.151974,98701.0,98700.0,0.00043525]
[1740151324707,0.1534945,98701.0,98700.0,0.00043525]
[1740151324923,0.151974,98701.0,98700.0,0.00043525]
[1740151325153,0.15349412,98701.0,98700.0,0.00043525]
[1740151325375,0.00109567,98703.0,98700.0,0.00043525]
[1740151325612,0.00109567,98703.0,98702.0,0.151972]
[1740151326047,0.001,98706.0,98705.0,0.151967]
[1740151326254,0.001,98706.0,98705.0,0.25461269]
[1740151326677,0.001,98706.0,98700.0,0.00043525]
[1740151326918,0.001,98706.0,98705.0,0.151967]
[1740151327340,0.15,98743.0,98701.0,0.30527769]
[1740151327557,0.0015196,98742.0,98711.0,0.3229746]
[1740151327762,0.00151943,98750.0,98735.0,0.151921]
[1740151327969,0.10264569,98749.0,98712.0,0.10264569]
[1740151328431,0.00109567,98754.0,98721.0,0.3229746]
[1740151328630,0.10416503,98753.0,98721.0,0.3159746]
[1740151328840,0.10264569,98753.0,98722.0,0.10264569]
[1740151328995,0.0825,98776.0,98731.0,0.3229746]
[1740151329203,0.10416485,98775.0,98746.0,0.151904]
[1740151329406,0.10416485,98775.0,98752.0,0.151894]
[1740151329609,0.10416485,98775.0,98732.0,0.10264569]
[1740151329834,0.08923321,98795.0,98747.0,0.202537]
[1740151329835,0.0764,98795.0,98747.0,0.202537]
[1740151330041,0.10416449,98794.0,98755.0,0.15189]
[1740151330191,0.10416449,98794.0,98755.0,0.10264569]
[1740151330390,0.02,98718.0,98671.0,0.0002]
[1740151330687,0.0759,98693.0,98671.0,0.0002]
[1740151330888,0.00152044,98692.0,98671.0,0.0002]
[1740151331024,0.0759,98693.0,98671.0,0.0002]
[1740151331225,0.0015203,98704.0,98675.0,0.3229746]
[1740151331425,0.15,98699.0,98671.0,0.0002]
[1740151331659,0.10264569,98698.0,98682.0,0.3229746]
[1740151331859,0.015405,98701.0,98682.0,0.3229746]
[1740151332058,0.00151996,98700.0,98682.0,0.3229746]
[1740151332278,0.00151996,98700.0,98682.0,0.32340985]
[1740151332477,0.15,98711.0,98682.0,0.32340985]
[1740151332686,0.202574,98730.0,98692.0,0.3229746]
[1740151332836,0.10264569,98728.0,98692.0,0.3229746]
[1740151333187,0.15151982,98727.0,98694.0,0.151984]
[1740151333409,0.202618,98708.0,98692.0,0.3229746]
[1740151333581,0.151991,98690.0,98682.0,0.32340985]
[1740151333753,0.151971,98703.0,98683.0,0.00582692]
[1740151333953,0.151957,98712.0,98702.0,0.151972]
[1740151334199,0.151957,98712.0,98692.0,0.3229746]
[1740151334200,0.10264569,98712.0,98692.0,0.3229746]
[1740151334374,0.15,98710.0,98683.0,0.00582692]
[1740151334732,0.301964,98708.0,98698.0,0.151978]
[1740151334849,0.15,98704.0,98696.0,0.151981]
[1740151335052,0.20261,98712.0,98683.0,0.00582692]
[1740151335053,0.151937,98725.0,98684.0,0.00061149]
[1740151335257,0.36309543,98760.0,98702.0,0.3229746]
[1740151335450,0.00151967,98747.0,98722.0,0.15194]
[1740151335650,0.151918,98738.0,98727.0,0.202577]
[1740151335897,0.151925,98733.0,98712.0,0.3229746]
[1740151336116,0.151925,98733.0,98682.0,0.3249746]
[1740151336117,0.202657,98689.0,98673.0,0.00582692]
[1740151336475,0.302065,98642.0,98635.0,1.01448163]
[1740151336712,0.302074,98636.0,98635.0,0.86613211]
[1740151337106,0.152114,98610.0,98609.0,0.00524299]
[1740151337346,0.00152147,98631.0,98609.0,0.00524299]
[1740151337552,0.079,98647.0,98609.0,0.00524299]
[1740151337553,0.030479,98636.0,98609.0,0.00524299]
[1740151337763,0.00152119,98635.0,98610.0,0.202819]
[1740151337968,0.00152119,98635.0,98609.0,0.00567824]
[1740151338175,0.00152119,98635.0,98610.0,0.23229186]
[1740151338381,0.36309543,98620.0,98609.0,0.00567824]
[1740151338558,0.15211,98613.0,98610.0,0.02945131]
[1740151338758,0.36309543,98620.0,98609.0,0.00567824]
[1740151338963,0.10264569,98613.0,98609.0,0.00043525]
[1740151339391,0.36309543,98630.0,98610.0,0.01525523]
[1740151339607,5.41636143,100890.0,98609.0,0.00043525]
[1740151339608,0.36309543,98640.0,98609.0,0.00043525]
[1740151339846,0.0015212,98637.0,98609.0,0.00043525]
[1740151340034,0.152103,98618.0,98609.0,0.00043525]
[1740151340183,0.36309543,98620.0,98609.0,0.00043525]
[1740151340390,0.152114,98610.0,98609.0,0.00043525]
[1740151340593,0.25475969,98610.0,98609.0,0.00043525]
[1740151340827,0.36309543,98620.0,98609.0,0.00043525]
[1740151341033,0.10264569,98619.0,98609.0,0.00043525]
[1740151341209,0.36309543,98630.0,98616.0,0.152104]
[1740151341424,0.152114,98610.0,98609.0,0.00043525]
[1740151341835,0.15363553,98610.0,98609.0,0.00043525]
[1740151342045,0.36309543,98619.0,98609.0,0.00043525]
[1740151342249,0.202788,98626.0,98609.0,0.00043525]
[1740151342534,0.36309543,98620.0,98610.0,0.152114]
[1740151342745,0.36309543,98640.0,98609.0,0.00043525]
[1740151342955,0.10416676,98639.0,98611.0,0.3229746]
[1740151343143,0.10416676,98639.0,98621.0,0.152097]
[1740151343410,0.10416676,98639.0,98609.0,0.00043525]
[1740151343411,0.10264569,98639.0,98610.0,0.00494822]
[1740151343615,0.01015367,98619.0,98609.0,0.00043525]
[1740151343821,0.01015367,98619.0,98618.0,0.152102]
[1740151344235,0.01015367,98619.0,98618.0,0.15704976]
[1740151344669,0.01015367,98619.0,98618.0,0.25969545]
[1740151345715,0.01015367,98619.0,98618.0,0.15704976]
[1740151346580,0.01015367,98619.0,98618.0,0.25969545]
[1740151347930,0.00104209,98619.0,98618.0,0.25969545]
[1740151348145,0.0769,98689.0,98638.0,0.304141]
[1740151348353,0.0015203,98703.0,98665.0,0.3229746]
[1740151348553,0.151977,98699.0,98674.0,0.152015]
[1740151348848,0.36715643,98700.0,98665.0,0.3229746]
[1740151348849,0.151981,98696.0,98666.0,0.00507234]
[1740151349084,0.151988,98692.0,98674.0,0.152014]
[1740151349325,0.151995,98688.0,98675.0,0.00507225]
[1740151349546,0.10264569,98691.0,98675.0,0.152014]
[1740151349770,0.36715643,98700.0,98677.0,0.3229746]
[1740151349771,0.004061,98700.0,98677.0,0.3229746]
[1740151349969,0.151952,98716.0,98698.0,0.151978]
[1740151350167,0.10416553,98714.0,98687.0,0.3229746]
[1740151350378,0.151955,98713.0,98699.0,0.00497151]
[1740151350594,0.030451,98723.0,98687.0,0.3229746]
[1740151350595,0.15,98719.0,98706.0,0.151965]
[1740151350840,0.151934,98727.0,98687.0,0.3229746]
[1740151351255,0.1237,98728.0,98713.0,0.151955]
[1740151351256,0.0754,98728.0,98713.0,0.151955]
[1740151351677,0.0754,98728.0,98714.0,0.00493427]
[1740151351856,0.08948902,98734.0,98714.0,0.00493427]
[1740151352064,0.202573,98730.0,98714.0,0.00493427]
[1740151352215,0.151929,98730.0,98714.0,0.00493427]
[1740151352450,0.0018513,98715.0,98714.0,0.00493427]
[1740151353085,0.0008513,98715.0,98714.0,0.10757996]
[1740151353275,0.0008513,98715.0,98714.0,0.10819061]
[1740151353558,0.0008513,98715.0,98714.0,0.10757996]
[1740151354691,0.0008513,98715.0,98714.0,0.10857996]
[1740151355207,0.0008513,98715.0,98714.0,0.10757996]
[1740151355753,0.0018513,98715.0,98714.0,0.10857996]
[1740151355956,0.0018513,98715.0,98714.0,0.10919026]
[1740151356174,0.0018513,98715.0,98714.0,0.10919012]
[1740151356381,0.0008513,98715.0,98714.0,0.10325585]
[1740151356673,0.0008513,98715.0,98714.0,0.10264569]
[1740151356955,0.0008513,98715.0,98714.0,0.10325569]
[1740151357201,3e-07,98715.0,98714.0,0.12325569]
[1740151357637,3e-07,98715.0,98714.0,0.12325553]
[1740151358444,0.0010003,98715.0,98714.0,0.13025553]
[1740151358908,3e-07,98715.0,98714.0,0.12264569]
[1740151359112,3e-07,98715.0,98714.0,0.10264569]
[1740151359314,0.0010003,98715.0,98714.0,0.10964569]
[1740151359515,0.0010003,98715.0,98714.0,0.11025567]
[1740151359991,3e-07,98715.0,98714.0,0.16479652]
[1740151360133,3e-07,98715.0,98714.0,0.23162617]
[1740151360333,3e-07,98715.0,98714.0,0.23101619]
[1740151360535,3e-07,98715.0,98714.0,0.25099749]
[1740151360735,3e-07,98715.0,98714.0,0.28553834]
[1740151361034,3e-07,98715.0,98714.0,0.43553834]
[1740151361488,0.08948902,98751.0,98734.0,0.151923]
[1740151361683,0.08948902,98751.0,98750.0,0.151898]
[1740151361886,0.08948902,98751.0,98750.0,0.25454369]
[1740151362859,0.12095217,98751.0,98750.0,0.25454369]
[1740151363266,0.12095217,98751.0,98750.0,0.26154369]
[1740151363666,0.03146315,98751.0,98750.0,0.26154369]
[1740151363867,0.08948902,98762.0,98761.0,0.151881]
[1740151364068,0.08961818,98762.0,98761.0,0.151881]
[1740151364276,0.08961818,98762.0,98713.0,0.030425]
[1740151364277,0.151952,98715.0,98713.0,0.030425]
[1740151364473,0.00776899,98745.0,98649.0,0.0458]
[1740151364474,0.00151989,98714.0,98649.0,0.0458]
[1740151364681,0.152098,98620.0,98619.0,0.00758423]
[1740151365089,0.152098,98621.0,98619.0,0.00758423]
[1740151365292,0.36309543,98630.0,98600.0,0.08960748]
[1740151365490,0.202765,98637.0,98600.0,0.08960748]
[1740151365724,0.36309543,98640.0,98600.0,0.08960748]
[1740151365725,0.36309543,98640.0,98601.0,0.00061382]
[1740151366062,0.36309543,98620.0,98600.0,0.09004273]
[1740151366348,0.00152107,98619.0,98600.0,0.09004273]
[1740151366584,0.36309543,98620.0,98601.0,0.152128]
[1740151366804,0.36309543,98620.0,98601.0,0.00061423]
[1740151367001,0.030473,98643.0,98601.0,0.00061423]
[1740151367209,0.15,98649.0,98603.0,0.152123]
[1740151367431,0.36309543,98630.0,98601.0,0.001]
[1740151367640,0.36309543,98630.0,98605.0,0.152122]
[1740151367842,0.00152105,98629.0,98601.0,0.001]
[1740151368068,0.36309543,98630.0,98601.0,0.001]
[1740151368278,0.36309543,98640.0,98601.0,0.001]
[1740151368482,0.152073,98637.0,98610.0,0.152113]
[1740151368701,0.202751,98643.0,98607.0,0.152117]
[1740151368871,0.152079,98633.0,98607.0,0.152117]
[1740151369110,0.00152097,98648.0,98609.0,0.152115]
[1740151369325,0.030472,98655.0,98610.0,0.0006137]
[1740151369522,0.0807,98668.0,98604.0,0.00061371]
[1740151369727,0.00152073,98667.0,98600.0,0.36353068]
[1740151369907,0.152054,98649.0,98630.0,0.152082]
[1740151370106,0.152054,98649.0,98599.0,0.20284]
[1740151370107,0.0807,98668.0,98599.0,0.20284]
[1740151370323,0.00152073,98667.0,98600.0,0.56654779]
[1740151370529,0.152049,98653.0,98635.0,0.152075]
[1740151370940,0.152051,98651.0,98632.0,0.152079]
[1740151371144,0.15,98666.0,98632.0,0.00043525]
[1740151371392,0.15,98666.0,98632.0,0.00077905]
[1740151371539,0.36309543,98660.0,98632.0,0.00077905]
[1740151371742,0.202727,98655.0,98632.0,0.00077905]
[1740151371955,0.152065,98642.0,98632.0,0.00077905]
[1740151372160,0.00152081,98641.0,98632.0,0.00077905]
[1740151372360,0.09031908,98665.0,98632.0,0.00077905]
[1740151372581,0.152057,98647.0,98632.0,0.15285805]
[1740151372740,0.152055,98649.0,98634.0,0.152076]
[1740151372936,0.152057,98648.0,98632.0,0.00077905]
[1740151373137,0.10264569,98664.0,98635.0,0.152075]
[1740151373473,0.005,98653.0,98635.0,0.0003438]
[1740151373801,0.152059,98646.0,98635.0,0.0003438]
[1740151374023,0.10264569,98664.0,98635.0,0.0003438]
[1740151374241,0.09031908,98665.0,98663.0,0.152031]
[1740151374453,0.003,98648.0,98647.0,0.152057]
[1740151374660,0.003,98648.0,98647.0,0.01555068]
[1740151374863,0.36309543,98660.0,98607.0,0.202823]
[1740151375080,0.36309543,98650.0,98629.0,0.152083]
[1740151375312,0.15,98669.0,98613.0,0.202811]
[1740151375513,0.01454085,98667.0,98600.0,0.36309543]
[1740151375715,0.15206,98646.0,98635.0,0.00077905]
[1740151375919,0.152041,98658.0,98635.0,0.00077905]
[1740151376072,0.00152064,98657.0,98644.0,0.152061]
[1740151376276,0.00152063,98656.0,98635.0,0.00043525]
[1740151376461,0.152059,98646.0,98644.0,0.0003438]
[1740151376666,0.10416652,98645.0,98644.0,0.0003438]
[1740151377251,0.10264569,98645.0,98644.0,0.0003438]
[1740151378627,0.10416668,98645.0,98644.0,0.0003438]
[1740151378852,0.26870753,98645.0,98644.0,0.0003438]
[1740151379048,0.26718654,98645.0,98644.0,0.0003438]
[1740151379178,0.44597035,98645.0,98644.0,0.0003438]
[1740151379393,0.02773406,98658.0,98644.0,0.0003438]